bitfinex-derivatives/quotes_SOLF0:USTF0_20260102
["timestamp","ask_amount","ask_price","bid_price","bid_amount"]
[1767367046535,91.76,128.8,128.73,0.05572168]
[1767367046736,91.76,128.8,128.71,0.79899944]
[1767367046937,7.90046605,128.82,128.73,0.79899944]
[1767367047238,0.90846605,128.82,128.74,0.79899944]
[1767367047445,0.90846605,128.82,128.74,6.9955]
[1767367047630,0.05799864,128.79,128.74,6.9955]
[1767367048543,0.05799864,128.79,128.75,0.05515732]
[1767367049041,0.81747592,128.78,128.68,92.59899944]
[1767367049538,6.9946,128.77,128.69,6.9983]
[1767367049839,6.9946,128.77,128.68,92.59899944]
[1767367050046,0.05702371,128.74,128.71,0.05813158]
[1767367050439,0.05702371,128.74,128.65,0.79899944]
[1767367050636,0.77790019,128.74,128.63,201.51319944]
[1767367050838,0.77790019,128.74,128.63,0.79899944]
[1767367051347,0.77790019,128.74,128.65,7.0008]
[1767367051548,0.05821479,128.71,128.68,0.05936691]
[1767367052843,0.05821479,128.71,128.63,7.80069944]
[1767367053067,0.76896419,128.71,128.59,0.79899944]
[1767367053239,92.54492147,128.7,128.59,0.79899944]
[1767367053544,0.76492147,128.67,128.59,7.80299944]
[1767367053941,0.76492147,128.67,128.56,109.77679944]
[1767367053942,0.05498834,128.64,128.56,109.77679944]
[1767367054140,92.54492147,128.67,128.57,0.79899944]
[1767367054738,99.54492147,128.67,128.58,7.0045]
[1767367055146,0.05933096,128.64,128.61,0.05886286]
[1767367057050,0.75675277,128.64,128.54,10.02566506]
[1767367057251,0.69503557,128.62,128.54,0.79899944]
[1767367057639,91.8,128.61,128.54,0.79899944]
[1767367058047,0.05157687,128.59,128.56,0.05136085]
[1767367058543,91.8,128.63,128.56,0.05136085]
[1767367058742,91.8,128.63,128.54,109.79339944]
[1767367059044,91.8,128.63,128.56,7.0056]
[1767367059443,0.05925104,128.61,128.58,0.05950663]
[1767367060049,0.05925104,128.61,128.54,7.0066]
[1767367060263,0.62853343,128.6,128.52,0.79899944]
[1767367060554,91.82,128.59,128.49,0.79899944]
[1767367060749,0.62853343,128.58,128.49,0.79899944]
[1767367061146,0.05645557,128.55,128.52,0.04679139]
[1767367062263,0.05645557,128.55,128.49,0.79899944]
[1767367062741,91.89645557,128.55,128.49,0.79899944]
[1767367062946,91.89645557,128.55,128.47,7.0104]
[1767367063147,91.84,128.54,128.46,0.79899944]
[1767367063352,0.05753533,128.51,128.43,0.79899944]
[1767367063550,0.05475208,128.48,128.43,0.79899944]
[1767367064355,91.86,128.54,128.46,0.79899944]
[1767367064750,92.48458282,128.55,128.47,0.79899944]
[1767367065257,0.05348233,128.52,128.5,0.05475208]
[1767367066751,0.05348233,128.52,128.47,0.79899944]
[1767367067953,0.05348233,128.52,128.47,7.80949944]
[1767367068158,0.05348233,128.52,128.47,0.79899944]
[1767367069054,0.05348233,128.52,128.46,7.0109]
[1767367069259,0.05348233,128.52,128.46,0.79899944]
[1767367069848,0.05348233,128.52,128.43,0.79899944]
[1767367070057,0.05800678,128.49,128.43,0.79899944]
[1767367071056,0.05800678,128.49,128.4,0.79899944]
[1767367071361,0.05253496,128.46,128.41,7.0139]
[1767367071962,0.05253496,128.46,128.4,0.79899944]
[1767367072760,0.05253496,128.46,128.37,92.73899944]
[1767367072961,0.05485033,128.43,128.37,0.79899944]
[1767367073463,0.05485033,128.43,128.37,7.81499944]
[1767367073966,0.72181619,128.43,128.35,7.0169]
[1767367074161,0.05160069,128.4,128.35,7.0169]
[1767367074361,0.71762699,128.4,128.29,109.2049]
[1767367074562,0.6660263,128.4,128.29,0.79899944]
[1767367074865,0.05868967,128.36,128.29,110.00479944]
[1767367075252,0.05868967,128.36,128.31,7.0193]
[1767367076657,14.2817114,128.42,128.31,109.1877]
[1767367076858,123.0749,128.48,128.31,109.1877]
[1767367076859,91.94,128.41,128.32,110.00409464]
[1767367077062,0.72287499,128.4,128.3,0.82309464]
[1767367077256,0.72287499,128.4,128.31,110.01169464]
[1767367077456,91.96,128.4,128.32,0.82309464]
[1767367077964,92.68197737,128.43,128.35,0.05463165]
[1767367078167,92.68197737,128.43,128.34,0.82309464]
[1767367078563,92.68197737,128.43,128.35,7.017]
[1767367078564,99.69507737,128.43,128.35,7.017]
[1767367079064,0.05134793,128.4,128.38,0.04966091]
[1767367079269,0.05134793,128.4,128.34,0.82309464]
[1767367079762,0.05134793,128.4,128.33,7.0182]
[1767367080066,0.77156088,128.4,128.31,7.84229464]
[1767367080267,0.05205503,128.37,128.31,0.82309464]
[1767367080764,0.05205503,128.37,128.32,0.82309464]
[1767367081157,92.69934591,128.43,128.35,7.017]
[1767367081354,0.77054386,128.42,128.34,0.82309464]
[1767367081565,0.77054386,128.42,128.31,109.1894]
[1767367081566,7.78584386,128.39,128.31,0.82309464]
[1767367081772,7.78584386,128.39,128.29,0.82309464]
[1767367081970,91.98,128.38,128.31,7.0193]
[1767367082172,0.05531779,128.36,128.33,0.05104045]
[1767367082563,0.76947656,128.42,128.33,0.05104045]
[1767367082765,0.76947656,128.42,128.31,110.01319464]
[1767367082766,92.0,128.4,128.31,0.82309464]
[1767367082963,92.0,128.4,128.31,7.84229464]
[1767367083165,99.0148,128.4,128.31,0.82309464]
[1767367083367,0.76842152,128.39,128.28,92.84309464]
[1767367083560,0.76842152,128.42,128.32,0.05589628]
[1767367083768,7.0147,128.4,128.32,0.82309464]
[1767367083967,7.0147,128.4,128.29,109.2052]
[1767367083968,0.77827558,128.4,128.29,110.02829464]
[1767367084365,0.77827558,128.4,128.3,0.82309464]
[1767367084559,7.0152,128.39,128.34,0.05975975]
[1767367084763,0.05871328,128.36,128.34,0.05975975]
[1767367085670,92.0,128.39,128.34,0.05975975]
[1767367085868,92.77827558,128.43,128.33,0.82309464]
[1767367086366,92.77827558,128.43,128.35,7.0171]
[1767367086868,92.77827558,128.43,128.33,0.82309464]
[1767367087074,0.05215615,128.39,128.37,0.05610002]
[1767367088476,0.77827558,128.46,128.37,0.05610002]
[1767367088772,92.79827558,128.45,128.36,7.0167]
[1767367088979,0.77827558,128.44,128.36,7.0167]
[1767367089278,0.77827558,128.44,128.35,0.82309464]
[1767367089472,0.05703965,128.41,128.38,0.05800176]
[1767367090275,0.77827558,128.47,128.38,0.05800176]
[1767367090473,92.02,128.44,128.35,109.97889464]
[1767367090674,92.02,128.44,128.36,0.82309464]
[1767367091074,92.02,128.44,128.37,7.0161]
[1767367091375,0.05665032,128.42,128.39,0.05397191]
[1767367092870,7.0117,128.46,128.39,0.05397191]
[1767367093077,92.79827558,128.48,128.39,0.82309464]
[1767367093464,7.0108,128.47,128.39,7.83809464]
[1767367093664,92.79827558,128.48,128.39,7.83809464]
[1767367094064,0.05818765,128.45,128.42,0.05977956]
[1767367096166,0.83646323,128.45,128.36,0.82309464]
[1767367096370,92.02,128.44,128.36,0.82309464]
[1767367096977,99.0327,128.44,128.36,0.82309464]
[1767367097174,0.05246292,128.41,128.39,0.05354696]
[1767367100380,0.77827558,128.44,128.39,0.05354696]
[1767367100381,92.02,128.44,128.39,0.05354696]
[1767367101076,7.0129,128.43,128.39,0.05354696]
[1767367101273,0.05664708,128.42,128.39,0.05354696]
[1767367102085,7.07014708,128.42,128.35,7.0168]
[1767367102776,99.09014708,128.42,128.35,7.0168]
[1767367102972,7.0141,128.41,128.33,7.84099464]
[1767367103178,7.0141,128.41,128.36,0.05165906]
[1767367103179,0.05733019,128.38,128.36,0.05165906]
[1767367104276,7.0139,128.42,128.36,0.05165906]
[1767367104585,92.02,128.41,128.36,0.05165906]
[1767367105286,0.05429871,128.4,128.36,0.05165906]
[1767367106485,0.76386041,128.46,128.37,0.83026164]
[1767367106872,0.76386041,128.46,128.4,7.0145]
[1767367107077,92.02,128.47,128.39,0.81188865]
[1767367107272,0.78012432,128.49,128.39,0.81188865]
[1767367107476,0.05327722,128.45,128.43,0.05573106]
[1767367108275,7.0099,128.49,128.43,0.05573106]
[1767367108276,92.02,128.48,128.43,0.05573106]
[1767367109481,0.05437276,128.47,128.43,0.05573106]
[1767367112587,0.83449708,128.47,128.43,0.05573106]
[1767367113384,7.84549708,128.47,128.43,0.05573106]
[1767367113581,0.78012432,128.46,128.36,0.81188865]
[1767367113888,0.78012432,128.44,128.36,0.81188865]
[1767367114286,92.02,128.43,128.36,0.81188865]
[1767367114482,0.05802415,128.41,128.38,0.87030865]
[1767367114792,99.0321,128.45,128.38,0.87030865]
[1767367115888,0.05293512,128.43,128.38,7.88580865]
[1767367116089,0.05293512,128.43,128.38,7.07392]
[1767367116389,0.05293512,128.43,128.38,0.05842]
[1767367117493,0.05293512,128.43,128.38,0.87030865]
[1767367117786,7.0117,128.46,128.4,7.0144]
[1767367117787,92.02,128.46,128.4,7.0144]
[1767367118589,0.04920001,128.44,128.42,0.05958302]
[1767367118792,0.04920001,128.44,128.38,7.82698865]
[1767367119685,0.04920001,128.44,128.38,7.0151]
[1767367119892,7.06170001,128.44,128.4,0.05680302]
[1767367120089,0.05774394,128.43,128.4,0.05680302]
[1767367120287,96.51598124,128.48,128.4,7.07120302]
[1767367120588,96.51598124,128.48,128.4,7.0144]
[1767367120589,97.29610556,128.48,128.4,7.0144]
[1767367120793,92.80012432,128.48,128.4,7.0144]
[1767367121295,0.05597706,128.45,128.43,0.04919762]
[1767367121692,0.05597706,128.45,128.4,7.0144]
[1767367122704,0.05597706,128.45,128.41,0.05854565]
[1767367125397,0.83610138,128.45,128.41,0.05854565]
[1767367126792,0.83610138,128.45,128.37,0.81188865]
[1767367126793,7.0124,128.44,128.37,0.81188865]
[1767367126989,0.78012432,128.44,128.37,0.81188865]
[1767367127197,92.0,128.43,128.37,0.81188865]
[1767367127503,92.78012432,128.43,128.36,7.0167]
[1767367128001,0.0562268,128.41,128.38,0.05745485]
[1767367129290,0.0562268,128.41,128.34,0.81188865]
[1767367129291,0.83635112,128.41,128.34,7.82928865]
[1767367129490,92.85635112,128.41,128.34,0.81188865]
[1767367130597,92.0762268,128.41,128.36,0.04947761]
[1767367131002,0.0562268,128.41,128.36,0.04947761]
[1767367131203,0.0562268,128.41,128.36,7.06607761]
[1767367131905,0.0562268,128.41,128.33,109.173]
[1767367131906,0.78012432,128.4,128.31,0.81188865]
[1767367132400,92.80012432,128.4,128.31,0.81188865]
[1767367132796,7.0151,128.39,128.32,7.0189]
[1767367133103,0.05925178,128.37,128.34,0.05922611]
[1767367134005,0.05925178,128.37,128.29,0.81188865]
[1767367134203,92.02,128.36,128.29,0.81188865]
[1767367134896,0.05127348,128.34,128.31,0.05053467]
[1767367137492,113.62418124,128.39,128.31,0.05053467]
[1767367137493,92.04,128.38,128.31,0.05053467]
[1767367137705,0.77056044,128.37,128.3,0.76607044]
[1767367138506,0.05134752,128.35,128.32,0.05758963]
[1767367141503,5.26654168,128.4,128.32,0.05758963]
[1767367141809,92.81056044,128.39,128.31,0.76607044]
[1767367142200,92.83056044,128.38,128.31,0.76607044]
[1767367142497,92.83056044,128.38,128.33,0.05166376]
[1767367142498,0.77056044,128.37,128.33,0.05166376]
[1767367142702,0.05419113,128.36,128.33,0.05166376]
[1767367142902,92.11419113,128.36,128.33,0.05166376]
[1767367143093,92.11419113,128.36,128.28,109.97887044]
[1767367143299,92.06,128.36,128.29,7.0201]
[1767367143700,92.83056044,128.36,128.29,7.0201]
[1767367144303,0.05700391,128.34,128.31,0.05167806]
[1767367145521,0.82756435,128.34,128.27,7.0212]
[1767367145811,92.06,128.33,128.27,7.0212]
[1767367146516,0.05968065,128.31,128.29,0.05834136]
[1767367147117,0.05968065,128.31,128.25,0.76607044]
[1767367148018,0.05968065,128.31,128.27,7.0216]
[1767367148421,0.05968065,128.31,128.28,0.05344008]
[1767367148616,0.77056044,128.35,128.28,0.05344008]
[1767367148817,92.83056044,128.35,128.28,0.81951052]
[1767367149322,99.84796044,128.35,128.28,7.84061052]
[1767367149509,0.77056044,128.34,128.28,7.07454008]
[1767367149714,0.05200502,128.32,128.28,7.07454008]
[1767367150316,0.05200502,128.32,128.29,7.0205]
[1767367150622,92.08,128.34,128.29,7.0205]
[1767367151009,99.0973,128.35,128.29,7.0205]
[1767367151223,92.08,128.35,128.29,7.0205]
[1767367151721,0.05083541,128.33,128.31,0.05518446]
[1767367152423,92.08,128.35,128.31,0.05518446]
[1767367153317,0.77056044,128.34,128.26,0.76607044]
[1767367153622,92.85056044,128.34,128.26,0.76607044]
[1767367153817,7.78896044,128.33,128.26,0.76607044]
[1767367154326,0.05275003,128.31,128.28,0.05491331]
[1767367155222,0.82331047,128.31,128.23,0.76607044]
[1767367155518,92.85056044,128.31,128.24,7.0232]
[1767367156112,0.05355751,128.29,128.26,0.05175733]
[1767367158122,7.07425751,128.29,128.26,0.05175733]
[1767367158323,0.05355751,128.29,128.22,13.18719925]
[1767367158624,0.05355751,128.29,128.24,7.0231]
[1767367158931,0.05355751,128.29,128.22,12.42112881]
[1767367159121,0.05355751,128.29,128.22,13.18719925]
[1767367159424,0.77056044,128.37,128.26,0.76607044]
[1767367159725,92.85056044,128.36,128.26,0.76607044]
[1767367159920,7.0174,128.35,128.29,7.0205]
[1767367160126,7.0174,128.35,128.26,0.76607044]
[1767367160127,7.78796044,128.35,128.26,0.76607044]
[1767367160323,0.77056044,128.34,128.29,0.05908154]
[1767367160524,0.05401046,128.33,128.3,0.05222068]
[1767367162930,0.8245709,128.33,128.25,0.76607044]
[1767367163231,0.77056044,128.33,128.25,0.76607044]
[1767367163432,92.1,128.35,128.25,0.76607044]
[1767367163631,92.87056044,128.35,128.26,0.76607044]
[1767367164022,0.04930554,128.32,128.29,0.05806065]
[1767367164826,0.04930554,128.32,128.29,7.07866065]
[1767367165629,92.1,128.35,128.3,7.02]
[1767367166221,7.0167,128.37,128.31,7.0195]
[1767367166633,0.05131866,128.35,128.33,0.05124739]
[1767367169732,0.84214665,128.35,128.27,0.83985729]
[1767367170035,0.84214665,128.35,128.24,0.83985729]
[1767367170036,0.79082799,128.35,128.24,0.83985729]
[1767367170235,92.87082799,128.34,128.24,0.83985729]
[1767367170744,0.04956737,128.3,128.23,0.83985729]
[1767367171447,0.04956737,128.3,128.25,7.0225]
[1767367171634,0.04956737,128.3,128.26,0.05220353]
[1767367174743,0.04956737,128.3,128.22,12.42112881]
[1767367174744,0.83578125,128.3,128.22,12.42112881]
[1767367174941,92.83401035,128.3,128.22,13.2609861]
[1767367175153,0.73401035,128.29,128.22,12.42112881]
[1767367175444,92.83401035,128.29,128.22,12.42112881]
[1767367175639,0.05613473,128.27,128.24,0.05883522]
[1767367175844,92.89044091,128.27,128.22,12.42112881]
[1767367176838,99.91214091,128.27,128.23,0.05048285]
[1767367177751,0.73526367,128.25,128.22,1.166e-05]
[1767367178048,92.83526367,128.25,128.22,1.166e-05]
[1767367178437,7.75913418,128.24,128.15,0.83985729]
[1767367178642,0.05104664,128.21,128.15,0.83985729]
[1767367179055,0.05104664,128.21,128.17,7.027]
[1767367180050,92.1,128.24,128.18,7.86625729]
[1767367180750,92.88828623,128.24,128.18,7.0264]
[1767367181254,92.12,128.26,128.18,7.86625729]
[1767367181454,0.05734841,128.22,128.2,0.05503347]
[1767367182558,92.12,128.26,128.2,0.89489076]
[1767367182747,0.79033114,128.3,128.21,0.83985729]
[1767367182946,92.91033114,128.32,128.21,0.83985729]
[1767367183147,0.79033114,128.31,128.21,0.83985729]
[1767367183348,0.05647665,128.27,128.25,0.05539883]
[1767367185149,7.81023114,128.31,128.25,0.05539883]
[1767367186055,7.0202,128.3,128.25,0.05539883]
[1767367186252,0.05690354,128.29,128.25,0.05539883]
[1767367186851,7.07770354,128.29,128.25,0.05539883]
[1767367187055,7.86853153,128.29,128.25,0.05539883]
[1767367187254,99.98853153,128.29,128.25,0.05539883]
[1767367187656,7.0212,128.28,128.2,0.83985729]
[1767367187964,0.79082799,128.24,128.15,0.83985729]
[1767367188163,92.12,128.23,128.15,0.83985729]
[1767367188563,0.05353203,128.2,128.18,0.04909982]
[1767367190666,92.14,128.23,128.18,0.04909982]
[1767367191563,0.05476431,128.22,128.18,0.04909982]
[1767367191958,92.14,128.26,128.19,7.0259]
[1767367192658,99.1623,128.26,128.19,7.0259]
[1767367192854,0.04958797,128.24,128.21,0.05528603]
[1767367198869,0.79545976,128.32,128.21,0.885485]
[1767367199072,0.79545976,128.31,128.21,0.83019897]
[1767367199772,0.05718333,128.27,128.25,0.05501846]
[1767367200275,92.14,128.32,128.25,0.05501846]
[1767367200276,92.14,128.32,128.27,7.0215]
[1767367200476,7.44040739,128.34,128.27,0.83019897]
[1767367200772,0.79545976,128.31,128.24,7.85319897]
[1767367200963,0.79545976,128.31,128.24,7.023]
[1767367201275,0.79545976,128.28,128.18,110.12719897]
[1767367201578,0.79545976,128.26,128.18,0.83019897]
[1767367201783,0.79545976,128.26,128.16,0.83019897]
[1767367202164,0.79545976,128.24,128.16,0.83019897]
[1767367202365,0.05778895,128.21,128.15,92.18]
[1767367202577,0.05778895,128.21,128.14,0.83019897]
[1767367202768,92.93545976,128.24,128.14,0.83019897]
[1767367202971,0.79545976,128.23,128.14,0.83019897]
[1767367203377,0.05919378,128.2,128.17,0.050451]
[1767367203571,0.05919378,128.2,128.11,92.99019897]
[1767367203572,92.99465354,128.2,128.11,92.99019897]
[1767367203771,92.93545976,128.2,128.11,0.83019897]
[1767367204175,92.93545976,128.2,128.13,7.0291]
[1767367204381,0.79545976,128.19,128.11,0.83019897]
[1767367204575,0.79545976,128.19,128.08,0.83019897]
[1767367204873,0.04937246,128.16,128.08,0.83019897]
[1767367205074,92.88337442,128.18,128.08,0.83019897]
[1767367205269,0.74337442,128.17,128.08,0.83019897]
[1767367205476,0.74308403,128.14,128.03,109.426]
[1767367205667,109.326,128.16,128.07,0.05987434]
[1767367205668,0.74308403,128.13,128.07,0.05987434]
[1767367205869,0.05409126,128.11,128.09,0.05588911]
[1767367206267,0.79845153,128.11,128.03,7.0345]
[1767367206471,0.74436027,128.15,128.04,0.83019897]
[1767367206669,0.74436027,128.14,128.04,109.4197]
[1767367206870,92.16,128.15,128.07,0.83019897]
[1767367207079,0.74436027,128.17,128.08,0.83019897]
[1767367207269,0.05353029,128.14,128.11,0.05012131]
[1767367207875,0.74562185,128.2,128.11,0.05012131]
[1767367208066,0.74562185,128.22,128.13,7.85929897]
[1767367208271,92.16,128.21,128.13,7.85929897]
[1767367208673,0.74562185,128.22,128.14,7.0285]
[1767367208873,0.05482699,128.19,128.17,0.05107134]
[1767367209783,0.74901007,128.25,128.17,0.05107134]
[1767367209981,109.1995,128.31,128.17,0.05107134]
[1767367209982,92.18,128.26,128.18,0.83019897]
[1767367210685,92.18,128.26,128.18,110.13059897]
[1767367210876,92.18,128.26,128.18,0.83019897]
[1767367211074,0.058275,128.23,128.21,0.05272284]
[1767367211273,0.058275,128.23,128.15,93.03019897]
[1767367211472,0.75357701,128.25,128.16,0.83019897]
[1767367212174,0.75357701,128.25,128.17,0.83019897]
[1767367212378,0.05696737,128.22,128.2,0.05984909]
[1767367214797,7.77796614,128.29,128.2,0.89004806]
[1767367214990,99.93796614,128.29,128.2,0.83019897]
[1767367215189,0.79545976,128.28,128.19,0.83019897]
[1767367215882,0.05353436,128.25,128.22,0.05310476]
[1767367216279,0.05353436,128.25,128.19,0.83019897]
[1767367216682,0.05353436,128.25,128.18,7.0263]
[1767367217084,0.05353436,128.25,128.19,0.83019897]
[1767367217495,0.05353436,128.25,128.21,0.05915147]
[1767367219793,0.05353436,128.25,128.21,7.08385147]
[1767367220196,0.05353436,128.25,128.21,0.05915147]
[1767367221799,0.82254902,128.25,128.21,0.05915147]
[1767367221991,0.82254902,128.25,128.17,7.0267]
[1767367222301,99.1825,128.26,128.18,7.85669897]
[1767367222601,92.16,128.26,128.18,0.83019897]
[1767367222789,7.73232373,128.28,128.2,7.0254]
[1767367223099,0.04994428,128.25,128.23,0.04975825]
[1767367225300,0.04994428,128.25,128.19,7.0256]
[1767367227689,0.66685667,128.29,128.2,0.81623836]
[1767367227899,0.66685667,128.29,128.21,110.09293836]
[1767367228096,4.50928841,128.33,128.22,0.81623836]
[1767367228097,0.71680095,128.32,128.22,0.81623836]
[1767367228800,0.05832725,128.28,128.26,0.05304562]
[1767367230208,99.1786,128.33,128.26,0.05304562]
[1767367230405,0.77735095,128.32,128.26,0.05304562]
[1767367230611,0.77735095,128.32,128.17,109.3057]
[1767367230612,0.77735095,128.3,128.18,0.81623836]
[1767367230810,0.77735095,128.28,128.18,0.81623836]
[1767367231410,92.91735095,128.28,128.18,0.81623836]
[1767367231611,92.91735095,128.28,128.21,7.0248]
[1767367231912,0.05877841,128.24,128.22,0.05832725]
[1767367234614,0.83624847,128.24,128.17,7.0266]
[1767367235210,7.0239,128.23,128.15,7.84403836]
[1767367235415,7.0239,128.23,128.15,0.81623836]
[1767367235710,0.05266799,128.2,128.15,0.81623836]
[1767367236406,0.77747006,128.24,128.17,7.027]
[1767367237005,92.14,128.26,128.18,7.0265]
[1767367237306,92.96840942,128.26,128.18,7.0265]
[1767367237506,0.05212903,128.23,128.21,0.05148141]
[1767367239415,0.05212903,128.23,128.17,0.81623836]
[1767367239911,0.05212903,128.23,128.17,7.84303836]
[1767367240112,0.87801927,128.23,128.14,0.81623836]
[1767367240313,0.87801927,128.23,128.14,7.84493836]
[1767367240314,0.82589024,128.23,128.14,7.84493836]
[1767367240518,0.05568834,128.2,128.12,0.81623836]
[1767367240808,0.82506972,128.21,128.12,0.81623836]
[1767367241211,7.0256,128.2,128.12,0.81623836]
[1767367241409,0.82425863,128.2,128.12,0.81623836]
[1767367241808,7.0261,128.19,128.12,0.81623836]
[1767367242012,0.05845896,128.17,128.1,7.84683836]
[1767367242314,0.82425863,128.23,128.12,0.81623836]
[1767367242817,0.83249297,128.2,128.1,92.18]
[1767367243217,0.0581988,128.16,128.14,0.0551166]
[1767367243417,92.99249297,128.19,128.09,0.81623836]
[1767367243918,100.01859297,128.19,128.1,7.0306]
[1767367244123,100.01859297,128.19,128.1,0.81623836]
[1767367244515,0.05884723,128.16,128.1,0.81623836]
[1767367245221,0.05884723,128.16,128.1,7.84713836]
[1767367247216,109.2411,128.26,128.13,0.81623836]
[1767367247217,0.83249297,128.22,128.13,0.81623836]
[1767367247919,0.83249297,128.2,128.1,0.81623836]
[1767367248319,0.05022747,128.16,128.14,0.05439701]
[1767367250215,4.50928841,128.21,128.14,0.05439701]
[1767367250519,92.18,128.22,128.14,0.87063537]
[1767367250725,92.18,128.22,128.14,0.81623836]
[1767367251022,0.83249297,128.21,128.14,0.81623836]
[1767367251322,0.04963585,128.19,128.11,0.81623836]
[1767367251524,7.0266,128.18,128.11,7.84633836]
[1767367251716,0.83249297,128.18,128.11,7.0301]
[1767367252024,0.83249297,128.16,128.08,7.84823836]
[1767367252325,0.0495427,128.13,128.05,0.81623836]
[1767367252525,0.83249297,128.14,128.05,0.81623836]
[1767367252821,92.18,128.13,128.05,0.81623836]
[1767367253417,0.05264383,128.1,128.05,0.81623836]
[1767367254222,0.05264383,128.1,128.03,13.37338651]
[1767367255925,0.05264383,128.1,128.04,7.0342]
[1767367256125,0.05264383,128.1,128.03,13.37338651]
[1767367257122,7.08374383,128.1,128.03,13.37338651]
[1767367257327,7.08374383,128.1,128.03,12.55714815]
[1767367257328,0.77497671,128.09,128.03,12.55714815]
[1767367257525,0.83106098,128.07,128.03,12.55714815]
[1767367257920,93.03106098,128.07,128.03,2.542e-05]
[1767367258627,0.05608427,128.07,128.03,2.542e-05]
[1767367260317,7.86396098,128.07,128.03,2.542e-05]
[1767367260927,92.22,128.06,128.03,2.542e-05]
[1767367261524,92.99497671,128.06,128.03,2.542e-05]
[1767367261930,0.77497671,128.05,127.97,7.0378]
[1767367262126,5.28426512,128.0,127.9,0.82202489]
[1767367262326,0.05711791,127.96,127.9,0.82202489]
[1767367263825,0.77497671,128.04,127.91,0.82202489]
[1767367264030,93.01497671,128.06,127.95,0.82202489]
[1767367264225,0.77497671,128.03,127.95,0.82202489]
[1767367264429,0.77497671,128.03,127.9,109.5396]
[1767367264430,7.0361,128.01,127.92,7.86272489]
[1767367264730,0.77497671,127.99,127.89,0.82202489]
[1767367264932,0.05970914,127.95,127.93,0.0578207]
[1767367265821,7.81217671,127.99,127.93,0.0578207]
[1767367266016,92.26,127.99,127.93,0.0578207]
[1767367266330,93.03497671,127.99,127.93,0.0578207]
[1767367266531,0.77497671,127.98,127.93,0.0578207]
[1767367266727,0.77497671,127.98,127.81,132.9936]
[1767367266728,0.77497671,127.92,127.84,0.82202489]
[1767367266927,207.09866512,127.91,127.8,0.82202489]
[1767367267231,93.05497671,127.9,127.8,0.82202489]
[1767367267430,93.05497671,127.9,127.76,109.6613]
[1767367267431,0.77497671,127.85,127.74,109.6743]
[1767367267731,5.28426512,127.88,127.78,7.10298434]
[1767367267918,0.77497671,127.86,127.76,0.82202489]
[1767367268116,7.0448,127.85,127.76,0.82202489]
[1767367268323,0.77497671,127.84,127.71,114.21218841]
[1767367268531,0.77497671,127.78,127.66,0.82202489]
[1767367268736,0.0549366,127.76,127.74,0.05889757]
[1767367269028,93.05497671,127.78,127.74,0.05889757]
[1767367269529,109.5923,127.85,127.74,0.05889757]
[1767367269734,0.77497671,127.81,127.7,109.7116]
[1767367269935,0.77497671,127.81,127.71,7.87412489]
[1767367270132,0.05520221,127.78,127.75,0.04998864]
[1767367270327,0.05520221,127.78,127.68,0.82202489]
[1767367270630,0.05520221,127.78,127.68,110.54872489]
[1767367270833,92.37520221,127.78,127.69,109.7203]
[1767367271228,0.77497671,127.77,127.72,1.688e-05]
[1767367271542,0.05520221,127.78,127.73,0.05913159]
[1767367271725,92.39520221,127.78,127.73,0.05913159]
[1767367272036,0.05520221,127.78,127.73,0.05913159]
[1767367272235,0.05520221,127.78,127.73,0.88115648]
[1767367272431,0.77497671,127.79,127.73,110.56325648]
[1767367272742,206.48528841,127.82,127.73,0.05913159]
[1767367272938,206.48528841,127.82,127.72,1.688e-05]
[1767367273128,114.12528841,127.82,127.72,1.688e-05]
[1767367273330,4.50928841,127.78,127.72,1.688e-05]
[1767367273731,0.05146212,127.76,127.72,1.688e-05]
[1767367274233,0.05146212,127.76,127.67,0.82202489]
[1767367274426,92.38,127.76,127.67,0.82202489]
[1767367274621,92.38,127.76,127.68,0.82202489]
[1767367274819,0.05482993,127.73,127.71,0.0501994]
[1767367275023,0.05482993,127.73,127.68,0.82202489]
[1767367275438,0.05482993,127.73,127.65,7.87722489]
[1767367275733,4.64669595,127.74,127.63,0.82202489]
[1767367275937,114.32899595,127.74,127.63,0.82202489]
[1767367276232,0.05889409,127.7,127.67,0.05562627]
[1767367276620,92.45889409,127.7,127.67,0.05562627]
[1767367277223,92.45889409,127.7,127.63,0.82202489]
[1767367277531,0.07348621,127.68,127.57,110.64162489]
[1767367277726,0.07348621,127.68,127.58,7.88132489]
[1767367277923,0.07348621,127.66,127.57,110.64492489]
[1767367278129,4.58277462,127.68,127.58,0.82202489]
[1767367278325,0.05018767,127.64,127.62,0.03295598]
[1767367278537,92.49348621,127.68,127.62,0.03295598]
[1767367279127,92.44,127.71,127.63,110.59612489]
[1767367279433,92.44,127.72,127.63,110.59612489]
[1767367279626,4.67444486,127.78,127.67,0.82202489]
[1767367279828,92.44,127.77,127.67,0.82202489]
[1767367280024,92.44,127.77,127.69,7.0535]
[1767367280228,92.62515645,127.78,127.69,7.87552489]